Cogmind - Beta 15 @@@ ROGUE MODE // 2025.07.13 @ 00:23:28 Player: Inverisimilidude Result: Destroyed by Y-54 Guardian with Flak Gun Performance ------------- Evolutions (4) 2000 Regions Visited (10) 2000 Robots Destroyed (36) 180 Value Destroyed (1005) 1005 Prototype IDs (28) 560 Alien Tech Used (0) 0 Bonus (300) 300 TOTAL SCORE: 6045 Bonus ------- Aligned with FarCom 300 Cogmind --------- Core Integrity 0/850 Matter 162/300 Energy 99/100 System Corruption 0% Temperature Cool (12) Movement Core (50) Location -6/Extension Parts ------- > --- POWER (1) -------- (None) > --- PROPULSION (5) --- (None) > --- UTILITY (6) ------ Advanced Signal Interpreter > --- WEAPON (3) ------- (None) > --- INVENTORY (5) ---- Fission Core Medium Storage Unit Transmission Jammer Hacking Suite Peak State ------------ > --- POWER ------------ Improved Ion Engine > --- PROPULSION ------- Aluminum Leg Aluminum Leg Improved Aluminum Leg > --- UTILITY ---------- Large Storage Unit Signal Interpreter System Shield > --- WEAPON ----------- YOLO Cannon > --- INVENTORY -------- Improved Ion Engine Aluminum Leg Armored Wheel Improved Heat Sink Compact Matter Pod Core Analyzer Transmission Jammer Light Armor Plating Heavy Assault Rifle Autogun Minigun High-powered Shotgun Katana [Rating: 34] Favorites ----------- Power Improved Ion Engine Engine Improved Ion Engine Propulsion Aluminum Leg Leg Aluminum Leg Wheel Armored Wheel Hover Unit Cooled Airjet Flight Unit Cesium-ion Thruster Utility System Shield Storage Large Storage Unit Processor Visual Processing Unit Hackware System Shield Weapon High-powered Shotgun Energy Gun EM Pulse Gun Energy Cannon YOLO Cannon Ballistic Gun High-powered Shotgun Launcher Missile Launcher Build | -11 -10 -9 -9 -9 -8 -8 -7 -7 -6 -6 ------- Run | Yrd Mat Mat Min Exi Min Mat Fac Sto Fac Ext Slots Evolved 8 | . . 2 . . . 2 2 . 2 . Power . | . . . . . . . . . . . Propulsion 3 | . . 1 . . . 1 1 . . . Utility 4 | . . 1 . . . . 1 . 2 . Weapon 1 | . . . . . . 1 . . . . Parts Attached 39 | 6 2 9 5 1 8 4 1 . 3 . Power 5 | 1 1 2 . . 1 . . . . . Engine 5 | 1 1 2 . . 1 . . . . . Core . | . . . . . . . . . . . Reactor . | . . . . . . . . . . . Propulsion 15 | 2 . 2 4 . 3 2 . . 2 . Treads . | . . . . . . . . . . . Leg 12 | 2 . 2 4 . 2 2 . . . . Wheel 1 | . . . . . 1 . . . . . Hover 1 | . . . . . . . . . 1 . Flight 1 | . . . . . . . . . 1 . Utility 8 | 1 . 3 . . 1 1 1 . 1 . Device . | . . . . . . . . . . . Storage 3 | 1 . 1 . . . 1 . . . . Processor 4 | . . 1 . . 1 . 1 . 1 . Hackware 1 | . . 1 . . . . . . . . Protection . | . . . . . . . . . . . Artifact . | . . . . . . . . . . . Weapon 11 | 2 1 2 1 1 3 1 . . . . Energy Gun 1 | 1 . . . . . . . . . . Energy Cannon 1 | . . . . . 1 . . . . . Ballistic Gun 8 | 1 1 2 1 1 2 . . . . . Ballistic Cannon . | . . . . . . . . . . . Launcher 1 | . . . . . . 1 . . . . Special Weapon . | . . . . . . . . . . . Impact Weapon . | . . . . . . . . . . . Slashing Weapon . | . . . . . . . . . . . Piercing Weapon . | . . . . . . . . . . . Special Melee Weapon . | . . . . . . . . . . . Unidentified Prototypes 2 | . . 1 . . . . . . 1 . Parts Lost 18 | . . 1 . . 5 2 8 . 2 . Power 2 | . . . . . 1 . 1 . . . Propulsion 11 | . . 1 . . 4 1 3 . 2 . Utility 1 | . . . . . . . 1 . . . Weapon 4 | . . . . . . 1 3 . . . Highest Loss Streak 8 | . . 1 . . 2 1 8 . 2 . To Critical Strikes 1 | . . . . . . . . . 1 . Average Backups 10 | 1 5 9 14 14 10 8 7 5 4 4 Power . | . 1 1 1 1 . . . . . 1 Propulsion 1 | . 2 2 3 3 1 . . . . . Utility 4 | . . 1 4 6 5 5 5 3 2 3 Weapon 3 | . 2 4 5 4 3 3 2 2 1 . Tool/Special . | . . . . . . . . . . . Unused Backups 21 | . 1 4 2 . 1 . 3 . 6 4 Power 3 | . 1 . . . . . . . 1 1 Propulsion 3 | . . 1 1 . 1 . . . . . Utility 9 | . . . 1 . . . 3 . 2 3 Weapon 6 | . . 3 . . . . . . 3 . Tool/Special . | . . . . . . . . . . . Average Slot Usage (%) 81 | . 85 96 100 100 92 85 75 . 10 6 Engine 9 | . 14 11 11 11 11 9 6 . . . Leg 23 | . 28 32 33 33 20 22 20 . . . Wheel 1 | . . . . . 6 4 . . . . Storage 9 | . 14 11 11 11 11 9 6 . . . Processor 9 | . . 8 11 11 11 9 14 . 2 6 Hackware 8 | . . 10 11 11 11 9 6 . . . Ballistic Gun 18 | . 25 21 22 22 20 22 15 . . . Peak Build Rating 34 | 6 8 19 21 22 34 22 22 1 14 6 Average Rating 17 | 5 7 17 20 21 19 20 19 1 8 6 On Entrance 10 | . 6 8 19 21 22 17 18 1 1 6 Naked Turns 295 | . . . . . . . 7 158 130 . Heaviest Build 45 | 12 17 33 33 33 45 39 39 . . . Greatest Support 33 | 20 20 30 33 33 33 33 33 3 8 3 Greatest Overweight (x) 2 | . . 1 1 . 2 2 1 . . . Average Overweight (x) . | . . . . . 1 1 . . . . Largest Inventory Capacity 15 | 8 8 15 15 15 15 15 15 5 5 5 Average Capacity 13 | 7 8 14 15 15 15 15 14 5 5 5 Most Carried 15 | 4 7 13 15 15 15 9 8 5 5 4 Average Carried 10 | 2 5 9 14 14 10 8 7 5 4 4 Final Capacity 15 | 8 8 15 15 15 15 15 5 5 5 5 Final Carried 15 | 4 7 13 15 15 8 9 5 5 4 4 Class Distribution -------------------- 67% | Mutant 24% | Scavenger-Mutant 8% | Skirmisher Dominant Class ---------------- Mutant | -10/Materials Mutant | -9/Materials Mutant | -9/Mines Scavenger-Mutant | -9/Exiles Mutant | -8/Mines Skirmisher | -8/Materials Mutant | -7/Factory Mutant | -7/Storage Mutant | -6/Factory Mutant | -6/Extension Resources | -11 -10 -9 -9 -9 -8 -8 -7 -7 -6 -6 ----------- Run | Yrd Mat Mat Min Exi Min Mat Fac Sto Fac Ext Matter Collected 1143 | 207 14 395 202 . 237 53 7 . 28 . Remotely . | . . . . . . . . . . . Salvage Created 1079 | . 50 278 279 . 405 67 . . . . Parts 55 | . 4 20 15 . 12 4 . . . . Haulers Intercepted 1 | . . . . . . 1 . . . . Recyclers Shooed . | . . . . . . . . . . . Parts Field Recycled . | . . . . . . . . . . . Retrieved Matter . | . . . . . . . . . . . Parts Self-Destructed . | . . . . . . . . . . . Prevented . | . . . . . . . . . . . Kills | -11 -10 -9 -9 -9 -8 -8 -7 -7 -6 -6 ------- Run | Yrd Mat Mat Min Exi Min Mat Fac Sto Fac Ext Combat Hostiles Destroyed 30 | . 1 8 9 . 10 2 . . . . Guns 24 | . 1 8 9 . 5 1 . . . . Cannons 3 | . . . . . 3 . . . . . AOE 3 | . . . . . 2 1 . . . . Classes Destroyed 8 | . 2 2 2 . 1 1 . . . . Tunneler 1 | . . . 1 . . . . . . . Hauler 1 | . . . . . . 1 . . . . Recycler 2 | . . . . . 2 . . . . . Watcher 2 | . 1 1 . . . . . . . . Swarmer 11 | . . 3 4 . 4 . . . . . Grunt 14 | . 1 3 4 . 5 1 . . . . Duelist 2 | . . . 1 . 1 . . . . . Sentry 3 | . . 2 . . . 1 . . . . Best Kill Streak 4 | . 1 4 3 . 4 1 . . . . Combat Bots Only 4 | . 1 3 3 . 4 1 . . . . Max Kills in Single Turn 3 | . 1 1 1 . 3 1 . . . . Gunslinging . | . . . . . . . . . . . Exploded 2 | . . . . . 2 1 . . . . Melee . | . . . . . . . . . . . Uniques/NPCs Destroyed . | . . . . . . . . . . . Combat | -11 -10 -9 -9 -9 -8 -8 -7 -7 -6 -6 -------- Run | Yrd Mat Mat Min Exi Min Mat Fac Sto Fac Ext Hostile Shots Fired 367 | . 8 40 30 . 66 30 14 62 99 18 Missed 139 | . 4 13 11 . 12 10 3 32 44 10 Hits 228 | . 4 27 19 . 54 20 11 30 55 8 Melee 8 | . . . 2 . 6 . . . . . Projectile 220 | . 4 27 17 . 48 20 11 30 55 8 Critical Strikes 7 | . . . . . 4 1 1 . 1 . Damage Taken 4151 | . 44 315 227 . 982 395 962 242 840 144 Core 1820 | . 22 29 51 . 126 131 365 242 710 144 Absorbed by Shields . | . . . . . . . . . . . Core Remaining (%) 65 | 100 91 . . . 48 76 . 13 . . Volleys Fired 78 | . 3 15 19 . 24 11 6 . . . Largest 3 | . 2 2 2 . 2 3 3 . . . Hottest 100 | . 43 50 50 . 100 84 71 . . . Shots Fired 164 | . 6 30 38 . 40 33 17 . . . Gun 153 | . 6 30 38 . 32 30 17 . . . Cannon 8 | . . . . . 8 . . . . . Launcher 3 | . . . . . . 3 . . . . Special . | . . . . . . . . . . . Kinetic 153 | . 6 30 38 . 32 30 17 . . . Thermal 8 | . . . . . 8 . . . . . Explosive 3 | . . . . . . 3 . . . . Electromagnetic . | . . . . . . . . . . . Robot Hit Streak 11 | . 2 5 10 . 11 6 8 . . . Robot Miss Streak 4 | . 1 4 4 . 3 3 2 . . . Penetration Max . | . . . . . . . . . . . Secondary Targets 4 | . . 2 1 . 1 . . . . . Max Gunslinging Chain 1 | . . 1 1 . 1 . . . . . Shots Hit Robots 111 | . 5 21 24 . 25 24 12 . . . Core Hits 59 | . 3 14 16 . 16 5 4 . 1 . Critical Kills . | . . . . . . . . . . . Critical Parts Destroyed 1 | . . . 1 . . . . . . . Critical Strikes 1 | . . . 1 . . . . . . . Destroy 1 | . . . 1 . . . . . . . Melee Attacks . | . . . . . . . . . . . Impact . | . . . . . . . . . . . Slashing . | . . . . . . . . . . . Piercing . | . . . . . . . . . . . Sneak Attacks . | . . . . . . . . . . . Combat Hostiles . | . . . . . . . . . . . Follow-up Attacks . | . . . . . . . . . . . Damage Inflicted 3151 | . 59 385 417 . 1469 511 253 14 43 . Guns 1889 | . 59 385 417 . 430 347 251 . . . Cannons 311 | . . . . . 311 . . . . . Explosions 892 | . . . . . 728 164 . . . . Melee . | . . . . . . . . . . . Ramming 59 | . . . . . . . 2 14 43 . Kinetic 1889 | . 59 385 417 . 430 347 251 . . . Thermal 1039 | . . . . . 1039 . . . . . Explosive 164 | . . . . . . 164 . . . . Electromagnetic . | . . . . . . . . . . . Impact . | . . . . . . . . . . . Slashing . | . . . . . . . . . . . Piercing . | . . . . . . . . . . . Highest Corruption 14 | . . . . . . . 14 14 . . Average Corruption 14 | . . . . . . . 14 14 . . Corruption Purged . | . . . . . . . . . . . Corruption Blocked . | . . . . . . . . . . . Effects 8 | . . . . . . . 3 5 . . Message Errors 2 | . . . . . . . . 2 . . Energy Discharges 1 | . . . . . . . 1 . . . Data Loss (major) 1 | . . . . . . . . 1 . . Alerts 1 | . . . . . . . . 1 . . Misdirections 3 | . . . . . . . 2 1 . . Overload Shots . | . . . . . . . . . . . Overflow Damage 124 | . . . . . 124 . . . . . Projectiles 71 | . . . . . 71 . . . . . Explosions 53 | . . . . . 53 . . . . . Melee . | . . . . . . . . . . . Knockbacks . | . . . . . . . . . . . Impact . | . . . . . . . . . . . Kinetic . | . . . . . . . . . . . Secondary . | . . . . . . . . . . . Self-Inflicted Damage 121 | . . . . . 66 29 . 7 19 . Shots 2 | . . . . . 1 1 . . . . Rammed 13 | . . . . . . . 2 2 9 . Targets Rammed 13 | . . . . . . . 2 2 9 . Kicked . | . . . . . . . . . . . Crushed . | . . . . . . . . . . . Highest Temperature 219 | . 1 30 18 . 219 63 . . . . Average Temperature 40 | . 1 9 7 . 72 29 . . . . Received Heat Transfer 873 | . 24 117 66 . 405 108 18 72 27 36 Effects 2 | . . . . . 2 . . . . . Interference 2 | . . . . . 2 . . . . . Siege Activations . | . . . . . . . . . . . Martial Activations . | . . . . . . . . . . . Shielding Activations . | . . . . . . . . . . . Robots Disrupted . | . . . . . . . . . . . Combat Hostiles . | . . . . . . . . . . . Robots Corrupted . | . . . . . . . . . . . Combat Hostiles . | . . . . . . . . . . . Parts Fried . | . . . . . . . . . . . Impact Corruptions . | . . . . . . . . . . . Robots Melted . | . . . . . . . . . . . Combat Hostiles . | . . . . . . . . . . . Parts Melted . | . . . . . . . . . . . Heat Transferred 1120 | . . . . . 1120 . . . . . Parts Sabotaged . | . . . . . . . . . . . Parts Stolen . | . . . . . . . . . . . Parts Stripped . | . . . . . . . . . . . Power Chain Reactions . | . . . . . . . . . . . Alert | -11 -10 -9 -9 -9 -8 -8 -7 -7 -6 -6 ------- Run | Yrd Mat Mat Min Exi Min Mat Fac Sto Fac Ext Maximum Alert Level . | . . . . . . . . . . . Low Security (%) 100 | 100 100 100 100 . 100 100 100 100 100 100 Level 1 . | . . . . . . . . . . . Level 2 . | . . . . . . . . . . . Level 3 . | . . . . . . . . . . . Level 4 . | . . . . . . . . . . . Level 5 . | . . . . . . . . . . . High Security . | . . . . . . . . . . . Max Security . | . . . . . . . . . . . Peak Influence 157 | . 34 78 125 . 157 62 . 70 30 10 Initial 18 | . . 14 . . . . . . 18 10 Average 25 | . 3 30 31 . 46 8 . 36 3 2 Influence Increases 1080 | . 51 243 260 . 291 100 . 90 45 . Destroy 0b10 Robot/C 600 | . 20 160 180 . 200 40 . . . . Destroy 0b10 Robot/NC 30 | . 5 5 5 . 10 5 . . . . Destroy Leader 126 | . 12 42 30 . 30 12 . . . . Successful Hack 43 | . 14 19 . . . 10 . . . . Disable Machine 45 | . . 15 15 . . 15 . . . . Destroy Structure 71 | . . 2 . . 51 18 . . . . Partial Spotted 15 | . . . . . . . . . 15 . Lose Combat Pursuer 150 | . . . 30 . . . . 90 30 . Influence Decreases 1080 | . 17 276 261 . 288 103 . 50 63 22 Entered New Map 58 | . . 20 1 . . 3 . . 22 12 Time Decay 962 | . 17 256 260 . 238 90 . 50 41 10 Lost Part 60 | . . . . . 50 10 . . . . Squads Dispatched 11 | . 2 . 1 . . 2 2 2 2 . Investigation 7 | . 2 . 1 . . 2 . 1 1 . Extermination 1 | . . . . . . . . 1 . . Reinforcement 3 | . . . . . . . 2 . 1 . Assault . | . . . . . . . . . . . Garrison . | . . . . . . . . . . . Intercept . | . . . . . . . . . . . Searches Triggered . | . . . . . . . . . . . Construction Impeded . | . . . . . . . . . . . Haulers Reinforced 1 | . . . . . . . . . 1 . Active Scanning Responses . | . . . . . . . . . . . Cargo Convoy Interrupts . | . . . . . . . . . . . Stealth | -11 -10 -9 -9 -9 -8 -8 -7 -7 -6 -6 --------- Run | Yrd Mat Mat Min Exi Min Mat Fac Sto Fac Ext Distress Signals 4 | . 1 1 . . . 1 . . 1 . Communications Jammed . | . . . . . . . . . . . Distress Signals . | . . . . . . . . . . . Times Spotted 76 | . 6 10 12 . 9 4 4 8 17 6 Peak Tracking Total 15 | . 5 4 4 . 4 4 4 6 15 5 Tactical Retreats 5 | . . . 2 . . . . 2 1 . Traps | -11 -10 -9 -9 -9 -8 -8 -7 -7 -6 -6 ------- Run | Yrd Mat Mat Min Exi Min Mat Fac Sto Fac Ext Traps Triggered 5 | . 1 . . . . 2 . 1 1 . Indirectly . | . . . . . . . . . . . Trap Hack Attempts . | . . . . . . . . . . . Triggered . | . . . . . . . . . . . Disarmed . | . . . . . . . . . . . Reprogrammed . | . . . . . . . . . . . Reused . | . . . . . . . . . . . Traps Extracted . | . . . . . . . . . . . Installed . | . . . . . . . . . . . Triggered . | . . . . . . . . . . . Machines | -11 -10 -9 -9 -9 -8 -8 -7 -7 -6 -6 ---------- Run | Yrd Mat Mat Min Exi Min Mat Fac Sto Fac Ext Machines Disabled 3 | . . 1 1 . . 1 . . . . Max in Single Turn 1 | . . 1 1 . . 1 . . . . Machines Repaired . | . . . . . . . . . . . Machines Dismantled . | . . . . . . . . . . . Machines Sabotaged . | . . . . . . . . . . . Overloaded Fab Kills . | . . . . . . . . . . . Hacking | -11 -10 -9 -9 -9 -8 -8 -7 -7 -6 -6 --------- Run | Yrd Mat Mat Min Exi Min Mat Fac Sto Fac Ext Machines Accessed 13 | . 2 4 1 1 . 3 . 2 . . Terminals 11 | . 2 4 . . . 3 . 2 . . Fabricators . | . . . . . . . . . . . Repair Stations . | . . . . . . . . . . . Recycling Units . | . . . . . . . . . . . Scanalyzers . | . . . . . . . . . . . Garrison Access . | . . . . . . . . . . . Total Hacks 32 | . 5 9 1 1 . 11 . 5 . . Successful 17 | . 1 6 1 1 . 4 . 4 . . Failed 15 | . 4 3 . . . 7 . 1 . . Catastrophic 5 | . 2 . . . . 3 . . . . Database Lockouts . | . . . . . . . . . . . Manual 25 | . 3 7 . 1 . 10 . 3 1 . Terminals 30 | . 5 9 . . . 11 . 5 . . Fabricators . | . . . . . . . . . . . Repair Stations . | . . . . . . . . . . . Recycling Units . | . . . . . . . . . . . Scanalyzers . | . . . . . . . . . . . Garrison Access . | . . . . . . . . . . . Terminal Hacks 8 | . . 3 1 1 . 1 . 2 . . Record 1 | . . . . . . . . 1 . . Prototype ID Bank 1 | . . 1 . . . . . . . . Open Door 1 | . . . 1 . . . . . . . Branch Access Points 3 | . . 2 . . . 1 . . . . Recall Investigation 1 | . . . . . . . . 1 . . Proto ID Catalog 1 | . . . . 1 . . . . . . Fabricator Hacks . | . . . . . . . . . . . Repair Station Hacks . | . . . . . . . . . . . Recycling Unit Hacks . | . . . . . . . . . . . Scanalyzer . | . . . . . . . . . . . Garrison Access Hacks . | . . . . . . . . . . . Unauthorized Hacks 9 | . 1 3 . . . 3 . 2 . . Terminals 9 | . 1 3 . . . 3 . 2 . . Botnet 9 | . 1 3 . . . 3 . 2 . . Fabricators . | . . . . . . . . . . . Repair Stations . | . . . . . . . . . . . Recycling Units . | . . . . . . . . . . . Scanalyzers . | . . . . . . . . . . . Garrison Access . | . . . . . . . . . . . Data Cores Recovered . | . . . . . . . . . . . Used . | . . . . . . . . . . . Hacking Detections 8 | . 2 2 . . . 3 . . 1 . Full Trace Events 4 | . 1 . . . . 3 . . . . Feedback Events . | . . . . . . . . . . . Feedback Blocked . | . . . . . . . . . . . Robot Schematics Acquired . | . . . . . . . . . . . Robots Built . | . . . . . . . . . . . Authchips . | . . . . . . . . . . . Time . | . . . . . . . . . . . Total Robot Build Rating . | . . . . . . . . . . . Part Schematics Acquired . | . . . . . . . . . . . Parts Built . | . . . . . . . . . . . Authchips . | . . . . . . . . . . . Time . | . . . . . . . . . . . Total Part Build Rating . | . . . . . . . . . . . Parts Repaired . | . . . . . . . . . . . Time . | . . . . . . . . . . . Parts Recycled . | . . . . . . . . . . . Recycled Matter . | . . . . . . . . . . . Retrieved Matter . | . . . . . . . . . . . Retrieved Components . | . . . . . . . . . . . Parts Scanalyzed . | . . . . . . . . . . . Part Schematics Acquired . | . . . . . . . . . . . Parts Damaged . | . . . . . . . . . . . Bothacking | -11 -10 -9 -9 -9 -8 -8 -7 -7 -6 -6 ------------ Run | Yrd Mat Mat Min Exi Min Mat Fac Sto Fac Ext Used RIF Installer . | . . . . . . . . . . . Robots Hacked . | . . . . . . . . . . . Non-combat . | . . . . . . . . . . . Combat . | . . . . . . . . . . . Robot Hacks Applied . | . . . . . . . . . . . Relay Couplers Released . | . . . . . . . . . . . Fabnet Peak Effective % . | . . . . . . . . . . . Robots Rewired . | . . . . . . . . . . . Allies Hacked . | . . . . . . . . . . . Hacks Repelled . | . . . . . . . . . . . Allies | -11 -10 -9 -9 -9 -8 -8 -7 -7 -6 -6 -------- Run | Yrd Mat Mat Min Exi Min Mat Fac Sto Fac Ext Total Allies . | . . . . . . . . . . . Largest Group . | . . . . . . . . . . . Highest-Rated Group . | . . . . . . . . . . . Highest-Rated Ally . | . . . . . . . . . . . Total Orders . | . . . . . . . . . . . Ally Attacks . | . . . . . . . . . . . Total Damage . | . . . . . . . . . . . Kills . | . . . . . . . . . . . Allies Corrupted . | . . . . . . . . . . . Allies Melted . | . . . . . . . . . . . Intel | -11 -10 -9 -9 -9 -8 -8 -7 -7 -6 -6 ------- Run | Yrd Mat Mat Min Exi Min Mat Fac Sto Fac Ext Active Infowar (turns) 2455 | . . 549 987 594 150 . 175 . . . Optics 2280 | . . 549 987 594 150 . . . . . T.N.C. 175 | . . . . . . . 175 . . . Robot Analysis Total . | . . . . . . . . . . . Derelict Logs Recovered 1 | . . . 1 . . . . . . . Drone Launches . | . . . . . . . . . . . Drone Recoveries . | . . . . . . . . . . . Exploration | -11 -10 -9 -9 -9 -8 -8 -7 -7 -6 -6 ------------- Run | Yrd Mat Mat Min Exi Min Mat Fac Sto Fac Ext Turns Passed 4820 | 81 136 675 987 594 955 551 182 158 428 73 Spaces Moved 3848 | 61 100 325 692 489 676 261 107 289 703 145 Core 738 | 6 . . . . . . 6 289 292 145 Treads . | . . . . . . . . . . . Legs 2306 | 55 100 325 692 489 294 250 101 . . . Wheels 393 | . . . . . 382 11 . . . . Hover 377 | . . . . . . . . . 377 . Flight 34 | . . . . . . . . . 34 . Fastest Speed 35 | 50 120 120 120 120 120 120 50 50 35 50 Average Speed 112 | 113 120 183 130 120 124 185 135 50 49 50 Slowest Speed 260 | 120 120 190 190 120 260 190 190 50 50 50 Overloaded Moves . | . . . . . . . . . . . Propulsion Burnouts . | . . . . . . . . . . . Robots Hopped . | . . . . . . . . . . . Potential Cave-ins . | . . . . . . . . . . . Cave-ins Triggered 1 | . . . . . . . 1 . . . Exploration Rate (%) 40 | 4 24 24 98 94 95 19 3 39 18 30 Regions Visited 10 Branch Regions 5 Pre-discovered Areas 1 | . . . 1 . . . . . . . Known Exits Taken 2 | . . 1 . . 1 . . . . . Unknown Exits Taken 8 | 1 1 . 1 1 . 1 1 1 1 . Scrap Searched 2 | . . . 1 . 1 . . . . . Spaces Dug . | . . . . . . . . . . . Terrain Destroyed 88 | . . . . . 72 16 . . . . Melee . | . . . . . . . . . . . Projectile 3 | . . . . . 3 . . . . . AOE 85 | . . . . . 69 16 . . . . Terrain Rammed . | . . . . . . . . . . . Walls Destroyed . | . . . . . . . . . . . Machines Disabled . | . . . . . . . . . . . Actions | -11 -10 -9 -9 -9 -8 -8 -7 -7 -6 -6 --------- Run | Yrd Mat Mat Min Exi Min Mat Fac Sto Fac Ext Total 4202 | 70 110 377 744 496 740 303 130 301 786 145 Wait 147 | . . 6 16 3 19 25 10 11 57 . Move 3838 | 60 99 324 691 488 675 260 106 288 702 145 Hop . | . . . . . . . . . . . Pick Up 37 | 4 4 12 6 1 1 1 1 . 7 . Fast Attach 19 | 6 . 6 . . 1 3 . . 3 . Attach 15 | . . 2 . . 11 . 2 . . . Detach 5 | . . . . . 5 . . . . . Swap 14 | . 2 2 5 1 1 2 1 . . . Drop 33 | . 2 10 7 2 3 1 . . 8 . Fire 78 | . 3 15 19 . 24 11 6 . . . Melee . | . . . . . . . . . . . Ram 15 | . . . . . . . 4 2 9 . Kick . | . . . . . . . . . . . Crush . | . . . . . . . . . . . Escape Stasis . | . . . . . . . . . . . Rewire 1 | . . . . 1 . . . . . . Trap . | . . . . . . . . . . . Miscellaneous . | . . . . . . . . . . . Route ------- -11/Scrapyard -10/Materials -9/Materials -9/Mines (discovered 4 exits: *Mat x2 / *Exi / [*Zio]) -9/Exiles (discovered 2 exits: [*Min x2]) -8/Mines (discovered 2 exits: *Mat x2) -8/Materials -7/Factory -7/Storage -6/Factory (discovered 2 exits: [*Low] / [*Ext]) -6/Extension History --------- Turn | Location | Event 19 | -11/Scrapyard | Discovered new exit (range 16) 82 | -11/Scrapyard | Entered Materials 191 | -10/Materials | Discovered new exit (range 16) 218 | -10/Materials | Entered another Materials area 218 | -9/Materials | Evolved 2 slots: Propulsion x1, Utility x1 302 | -9/Materials | Build established: Mutant 321 | -9/Materials | Identified exit to Mines 893 | -9/Materials | Entered Mines 1065 | -9/Mines | Learned 4 Materials zone layouts 1078 | -9/Mines | Discovered new exit (range 5) 1386 | -9/Mines | Discovered new exit (range 7) 1579 | -9/Mines | Met a Derelict shopkeep closing up shop 1760 | -9/Mines | A Derelict revealed a hidden shortcut to a safe place 1768 | -9/Mines | Learned location of Storage (-7) 1874 | -9/Mines | Deemed a non-threat by the Exiles lab entrance 1875 | -9/Mines | Discovered new exit (range 5) 1880 | -9/Mines | Entered Exiles 1901 | -9/Exiles | Discovered new exit (range 15) 1935 | -9/Exiles | Build established: Scavenger-Mutant 1937 | -9/Exiles | Met 8R-AWN 1978 | -9/Exiles | Met EX-HEX 2046 | -9/Exiles | Met EX-DEC 2076 | -9/Exiles | Visited The Gauntlet 2237 | -9/Exiles | Met EX-BIN 2258 | -9/Exiles | Aligned with FarCom system 2259 | -9/Exiles | Given EX-Vault access code 2312 | -9/Exiles | Opened EX-Vault 2322 | -9/Exiles | Found YOLO Cannon 2346 | -9/Exiles | Warned to stay clear of 0b10 Research branches 2368 | -9/Exiles | Exiles lab attacked by MAIN.C 2457 | -9/Exiles | Discovered new exit (range 15) 2474 | -9/Exiles | Left Exiles lab with YOLO Cannon 2474 | -9/Exiles | Entered Mines 2611 | -8/Mines | Discovered new exit (range 3) 2633 | -8/Mines | Identified exit to Materials 2923 | -8/Mines | Discovered exit to Materials (range 12) 3100 | -8/Mines | Core integrity fell below 50% 3130 | -8/Mines | Build established: Mutant 3429 | -8/Mines | Entered Materials 3429 | -8/Materials | Evolved 2 slots: Propulsion x1, Weapon x1 3621 | -8/Materials | Discovered new exit (range 15) 3937 | -8/Materials | Build established: Skirmisher 3980 | -8/Materials | Entered Factory 3980 | -7/Factory | Evolved 2 slots: Propulsion x1, Utility x1 4132 | -7/Factory | Discovered new exit (range 5) 4153 | -7/Factory | Crushed by falling debris 4153 | -7/Factory | System corruption reached 10% 4155 | -7/Factory | Released all parts (3) 4159 | -7/Factory | Core integrity fell below 50% 4162 | -7/Factory | Entered Storage 4184 | -7/Storage | Lost 8 parts (1p3n1u3w) 4310 | -7/Storage | Core integrity fell below 20% 4317 | -7/Storage | Discovered new exit (range 5) 4320 | -7/Storage | Entered Factory 4320 | -6/Factory | Evolved 2 slots: Utility x2 4389 | -6/Factory | Discovered new exit (range 11) 4428 | -6/Factory | Build established: Mutant 4732 | -6/Factory | Core integrity fell below 50% 4742 | -6/Factory | Discovered new exit (range 12) 4748 | -6/Factory | Core integrity fell below 20% 4748 | -6/Factory | Entered Extension 4815 | -6/Extension | Spotted B-75 Beast 4818 | -6/Extension | Spotted B-75 Beast 4821 | -6/Extension | Destroyed by Y-54 Guardian with Flak Gun Last Messages --------------- 04684_ K-01 Serf cleans the Nuclear Reactor. 04712_ Critical hit (Destroy). 04712_ Cld. Airjet destroyed. 04713_ Cesium-ion Thruster destroyed. 04718_ W-25 Informer sends out distress signal. 04720_ K-01 Serf destroyed. 04720_ Extracted 5 matter. 04724_ S-27 Virus destroyed. 04726_ Slammed into S-27 Virus. 04730_ Acquired 23 matter. 04730_ Slammed into S-27 Virus. 04732_ K-01 Serf collects debris. 04738_ K-01 Serf cleans the Terminal. 04742_ EXIT=FOUND 04745_ Connecting with Door Terminal... LOCATION=UNKNOWN GOAL=ESCAPE 04748_ Receiving FarCom transmissions... 04775_ U-05 Engineer enters Transfer Station. Map ----- +----------------------------------------------------+ | ?????????????????????????????????????????????????? | | ?????????????????????????????????????????????????? | | ?????????????????????????????????????????????????? | | ?????????????????????????????????????????????????? | | ?????????????????????????????????????????????????? | | ?????????????????????????????????????????????????? | | ?????????????????????????????????????????????????? | | ?????????????????????????????????????????????????? | | ?????????????????????????????????????????????????? | | ?????????????????????????????????????????????????? | | ?????????????????????????????????????????????????? | | ???????????????????????? ????????????????????????? | | ???????????????????????? ????????????????????????? | | ???????????????????????# #???????????????????????? | | ??????????????????????? #???????????????????????? | | ???????????????????????# #???????????????????????? | | ???????????????????????#u#???????????????????????? | | ???????????????????????# #???????????????????????? | | ???????????????????????# #???????????????????????? | | ???????????????????????#w#??##??#????????????????? | | ?????????????????????### ### ## ### #????????????? | | ?????????????????????#"" ""Y Y "" "????????????? | | ????????????????????## " " "u" #??????????? | | ????????????????????#; #??????????? | | ?????????????????????# #??????????? | | ###################### @ #??????????? | | ????????? | | ????????? | | % ?????????? | | t ?????????? | | ??????????? | | ###################### BB BB #??????????? | | ?????????????????????# BB BB #??????????? | | ?????????????????????# ???????????? | | ?????????????????????# ???????????? | | ?????????????????????# ????????????? | | ?????????????????????######T#"""#####????????????? | | ???????????????????????????##????????????????????? | | ?????????????????????????????????????????????????? | | | | | | | | | | | | | | | | | | | | | | | +----------------------------------------------------+ Best States ------------- Heat Dissipation 37 Energy Generation 14 Energy Capacity 280 Matter Stores 300 Matter Capacity 300 Sight Range 18 Terrain Scan Density 10 Evasion (%) 63 Defensive Hacking 10 Item Schematics ----------------- None Robot Schematics ------------------ None Fabricated ------------ Nothing Repaired ---------- Nothing Alien Tech Used ----------------- None Achievements -------------- None Challenges ------------ None Game ------ Seed TachyonLargeTrap Manual? 0 Play Time 00:42:27 Cumulative 44.4 hours Start 2025.07.12 @ 22:46:54 End 2025.07.13 @ 00:23:28 Sessions 1 Manual Loads 0 Difficulty Rogue Special Mode None Game No. 61 Rogue 61 Adventurer 0 Explorer 0 Win Type - Total 0 Types 0/0/0/0/0/0/0/0/0/0 Lore% 36 Gallery% 29 Achievement% 30 Wizard Run 0 Options --------- Layout 1 ASCII 0 Keyboard 0 Movement Arrows Keybinds 0 Fullscreen 1 Font 24/Smallcaps Map View 50x35 Zoom Use 0% Tactical HUD 1 Map Filters NONE Filters NONE Steam 1 RUN: 1ee34234-0474-4589-9d7b-28c382c5613b